bitfinex-derivatives/quotes_ETHF0:USTF0_20250910
["timestamp","ask_amount","ask_price","bid_price","bid_amount"]
[1757527365245,0.199,4369.4,4369.3,0.7293]
[1757527365446,0.3988,4369.4,4369.3,0.7293]
[1757527365644,0.6929,4369.4,4369.3,0.7293]
[1757527365845,0.6929,4369.4,4369.3,0.528]
[1757527366245,0.6929,4369.4,4369.3,0.3153]
[1757527366440,0.6929,4369.4,4369.3,0.528]
[1757527367245,0.6929,4369.4,4369.3,0.3153]
[1757527367443,0.3988,4369.4,4368.8,3.2078]
[1757527367648,0.3988,4368.9,4368.8,3.9371]
[1757527367849,0.6328,4368.9,4368.8,3.9371]
[1757527369548,0.6328,4368.9,4368.8,0.7293]
[1757527370641,0.433,4368.9,4368.8,0.7293]
[1757527372947,0.234,4368.9,4368.8,0.7293]
[1757527373541,0.234,4369.1,4369.0,0.5387]
[1757527373742,0.433,4369.1,4369.0,0.854]
[1757527374143,0.6328,4369.1,4369.0,0.854]
[1757527374649,0.433,4369.1,4369.0,0.854]
[1757527374848,0.6328,4369.1,4369.0,0.854]
[1757527375051,0.9269,4369.1,4369.0,0.854]
[1757527375254,0.234,4369.1,4369.0,0.854]
[1757527375553,0.433,4369.1,4369.0,0.854]
[1757527375851,0.9269,4369.1,4369.0,0.854]
[1757527376347,0.433,4369.1,4369.0,0.854]
[1757527376545,0.9269,4369.1,4369.0,0.854]
[1757527377750,0.9269,4369.1,4369.0,0.3153]
[1757527378045,0.6328,4369.1,4368.6,0.3079]
[1757527378248,0.6328,4369.1,4368.5,0.1247]
[1757527378249,0.4159,4369.0,4368.9,0.7301]
[1757527378453,0.2094,4369.0,4368.9,0.7301]
[1757527379245,0.5245,4369.4,4369.3,0.2074]
[1757527379453,0.965,4369.4,4369.3,0.7301]
[1757527380650,0.965,4369.4,4369.0,0.1284]
[1757527380953,0.6499,4369.4,4369.0,0.1284]
[1757527381149,0.731,4369.3,4369.2,0.5153]
[1757527381345,0.731,4369.3,4369.2,0.2074]
[1757527381552,0.731,4369.3,4369.2,0.5153]
[1757527381747,0.6499,4369.3,4369.2,0.7301]
[1757527382053,3.2078,4369.5,4369.3,0.3079]
[1757527382249,3.4418,4369.5,4369.4,0.4222]
[1757527382445,3.4418,4369.5,4369.4,0.7301]
[1757527382651,0.4434,4369.5,4369.4,0.7301]
[1757527382852,0.234,4369.5,4369.4,1.14198]
[1757527383658,3.6237,4370.1,4370.0,0.8585]
[1757527383859,4.1728,4370.1,4370.0,0.8585]
[1757527384157,3.6512,4370.1,4370.0,0.8585]
[1757527384552,3.4172,4370.1,4370.0,0.8585]
[1757527384753,3.6512,4370.1,4370.0,0.8585]
[1757527385557,3.4418,4370.1,4370.0,0.8585]
[1757527385754,3.2078,4370.1,4370.0,0.8585]
[1757527386271,0.234,4370.2,4370.1,0.7301]
[1757527387063,0.4434,4370.2,4370.1,0.7301]
[1757527388556,0.4434,4370.2,4369.6,0.2074]
[1757527388557,0.4159,4369.7,4369.6,0.2074]
[1757527388757,0.731,4369.7,4369.6,0.7301]
[1757527389462,0.4159,4369.7,4369.6,0.7301]
[1757527389961,0.731,4369.7,4369.6,0.7301]
[1757527391655,0.4159,4369.7,4369.6,0.7301]
[1757527393258,0.2094,4369.7,4369.6,0.7301]
[1757527393465,0.731,4369.7,4369.6,0.5153]
[1757527394760,0.4159,4369.7,4369.6,0.7301]
[1757527394966,0.2094,4369.7,4369.6,0.7301]
[1757527395162,0.4434,4369.7,4369.6,0.7301]
[1757527395765,0.3151,4370.1,4369.6,0.7301]
[1757527395969,0.2094,4370.1,4370.0,0.8585]
[1757527396267,0.234,4370.1,4370.0,0.8585]
[1757527396870,3.5229,4370.5,4370.1,0.3079]
[1757527397075,0.6499,4370.2,4370.1,0.7301]
[1757527397259,0.965,4370.2,4370.1,0.7301]
[1757527397463,0.6499,4370.2,4370.1,0.7301]
[1757527397862,3.2078,4370.5,4370.1,0.4222]
[1757527398070,3.2078,4370.5,4370.2,0.7301]
[1757527398372,33.931,4370.3,4370.2,0.7301]
[1757527399074,33.931,4370.3,4370.2,0.5153]
[1757527400067,33.931,4370.3,4370.2,0.7301]
[1757527400372,33.6159,4370.3,4370.2,0.7301]
[1757527401280,32.966,4370.3,4370.2,0.7301]
[1757527401474,33.931,4370.3,4370.2,0.7301]
[1757527401971,3.2078,4370.5,4370.2,0.7301]
[1757527402170,0.12,4371.5,4370.3,4.46281]
[1757527402365,0.4159,4370.6,4370.4,0.125]
[1757527402671,0.851,4370.5,4370.4,0.125]
[1757527402869,1.085,4370.5,4370.4,0.125]
[1757527403374,0.6691,4370.5,4370.4,0.125]
[1757527403969,0.8785,4370.5,4370.4,0.125]
[1757527406473,0.851,4370.5,4370.4,0.125]
[1757527406783,0.4351,4370.5,4370.4,0.125]
[1757527407078,0.3281,4371.0,4370.5,0.41177]
[1757527407374,0.3107,4370.9,4370.6,0.125]
[1757527407578,0.4103,4370.7,4370.6,0.125]
[1757527407781,0.3107,4370.7,4370.6,0.125]
[1757527408074,0.3107,4370.7,4370.6,4.125]
[1757527408791,0.3107,4370.7,4370.6,7.3328]
[1757527410474,0.3107,4370.9,4370.7,0.41176]
[1757527410675,0.3107,4370.9,4370.8,0.125]
[1757527411470,0.3107,4370.9,4370.8,0.53675]
[1757527414083,0.5188,4370.9,4370.8,0.53675]
[1757527414586,0.721,4370.9,4370.8,0.125]
[1757527416077,0.721,4370.9,4370.8,0.53675]
[1757527416783,0.3107,4370.9,4370.8,0.53675]
[1757527418187,0.3107,4371.4,4371.1,0.41172]
[1757527418386,0.5188,4371.3,4371.2,0.233]
[1757527419786,0.721,4371.3,4371.2,0.358]
[1757527423284,0.721,4371.3,4371.2,0.125]
[1757527425387,0.4103,4370.7,4370.6,3.2078]
[1757527425689,0.721,4370.7,4370.6,3.61957]
[1757527426590,0.721,4370.7,4370.6,3.81937]
[1757527426788,0.5188,4370.7,4370.6,4.01917]
[1757527427590,0.3107,4370.7,4370.6,4.14407]
[1757527428386,0.3107,4371.2,4371.1,0.3247]
[1757527428592,0.3107,4371.2,4371.1,0.93622]
[1757527428794,0.5188,4371.2,4371.1,0.81132]
[1757527429492,0.721,4371.2,4371.1,0.81132]
[1757527429697,0.721,4371.2,4371.1,0.3996]
[1757527429894,0.721,4371.2,4371.1,0.58134007]
[1757527430791,0.721,4371.2,4371.1,0.99306007]
[1757527432294,0.721,4371.2,4371.1,0.58134007]
[1757527432495,0.721,4371.2,4371.1,0.38154007]
[1757527434197,0.721,4371.2,4371.1,0.79326007]
[1757527435487,0.4103,4371.2,4370.6,3.2078]
[1757527435692,0.721,4370.7,4370.6,3.2078]
[1757527437394,0.721,4370.7,4370.6,3.61957]
[1757527437900,0.721,4370.7,4370.6,3.81887]
[1757527438893,0.721,4370.7,4370.6,3.4071]
[1757527440503,0.721,4370.7,4370.6,3.2078]
[1757527441707,0.721,4370.7,4370.6,3.82047]
[1757527441900,0.3107,4370.7,4370.6,4.14687]
[1757527442199,0.5081,4370.7,4370.6,4.14687]
[1757527442397,0.5081,4370.7,4370.6,4.02137]
[1757527442600,0.7102,4370.7,4370.6,4.02137]
[1757527442798,0.3107,4370.7,4370.6,4.02137]
[1757527442995,32.949,4372.7,4370.6,4.02137]
[1757527442996,0.3995,4372.0,4371.9,0.7336]
[1757527443199,0.5244,4372.0,4371.9,0.7336]
[1757527443601,0.5244,4372.0,4371.6,0.233]
[1757527444095,0.5244,4372.0,4371.6,0.64467]
[1757527444303,0.3995,4372.0,4371.9,0.4119]
[1757527444505,0.3995,4372.0,4371.9,0.7336]
[1757527445103,0.7194,4372.0,4371.9,0.7336]
[1757527447803,0.7194,4372.0,4371.9,0.91466817]
[1757527449096,0.7194,4372.0,4371.8,0.41165]
[1757527449097,0.8443,4372.0,4371.8,0.41165]
[1757527449400,0.7194,4371.8,4371.7,0.7336]
[1757527450297,0.7194,4371.8,4371.7,1.14526]
[1757527451602,0.7194,4371.8,4371.7,0.2092]
[1757527451805,0.7194,4371.8,4371.7,0.62086]
[1757527452203,0.7194,4371.8,4371.7,0.5309]
[1757527453007,0.7194,4371.8,4371.7,0.7336]
[1757527453307,0.7194,4371.8,4371.7,1.14526]
[1757527453709,0.1974,4371.8,4371.7,1.14526]
[1757527453900,0.5173,4372.1,4372.0,0.95303]
[1757527454101,0.5173,4372.1,4372.0,1.27473]
[1757527456501,0.5173,4372.1,4372.0,4.48253]
[1757527458106,0.1974,4372.1,4372.0,4.48253]
[1757527458405,0.5173,4372.4,4372.3,1.14521]
[1757527459212,3.7251,4372.7,4372.6,1.14518]
[1757527459903,3.9272,4372.7,4372.6,1.14518]
[1757527460300,0.7194,4372.7,4372.6,1.14518]
[1757527461512,0.7194,4372.7,4372.6,0.7336]
[1757527461703,0.7194,4372.7,4372.3,0.4116]
[1757527461906,0.7194,4372.3,4372.2,0.41162]
[1757527462109,0.7194,4372.3,4372.2,0.94252]
[1757527462411,0.7194,4372.3,4372.2,0.5309]
[1757527462613,0.7194,4372.3,4372.2,0.94252]
[1757527463311,0.3199,4372.2,4372.0,3.2078]
[1757527463609,0.1249,4372.5,4372.0,3.2078]
[1757527463610,0.7194,4372.1,4372.0,3.2078]
[1757527464408,3.9272,4373.9,4373.8,0.5244]
[1757527464615,0.1249,4373.5,4373.4,0.101]
[1757527464914,0.8443,4373.5,4373.4,0.2092]
[1757527465207,0.8443,4373.5,4373.4,0.7336]
[1757527465513,0.5173,4373.5,4373.4,0.7336]
[1757527465905,0.7194,4373.5,4373.4,0.7336]
[1757527466400,0.1249,4374.5,4373.9,0.5309]
[1757527466401,0.7194,4374.0,4373.9,0.5309]
[1757527466609,0.8443,4374.0,4373.9,0.5309]
[1757527466811,0.8443,4374.0,4373.6,0.235]
[1757527467215,0.3236,4373.9,4373.2,0.3035]
[1757527467416,0.4214,4373.3,4373.2,0.2144]
[1757527467600,0.745,4373.3,4373.2,0.7223]
[1757527468411,0.745,4373.3,4373.2,0.2144]
[1757527468713,0.3236,4372.9,4372.6,3.2078]
[1757527468906,0.4214,4372.2,4372.1,3.8626]
[1757527469213,0.745,4372.2,4372.1,4.1661]
[1757527469614,0.745,4372.2,4372.1,3.9301]
[1757527472116,0.8692,4372.0,4371.6,0.3035]
[1757527472509,0.745,4372.0,4371.9,0.7223]
[1757527477818,0.8692,4371.5,4371.4,3.4222]
[1757527478023,0.8692,4371.5,4371.4,3.7257]
[1757527478221,0.745,4371.5,4371.4,3.9301]
[1757527480525,0.8692,4371.5,4371.4,3.2078]
[1757527480721,0.8692,4371.5,4370.9,0.235]
[1757527480927,0.4214,4371.0,4370.9,0.9573]
[1757527481126,0.745,4371.0,4370.9,0.9573]
[1757527481838,0.745,4371.0,4370.9,0.7223]
[1757527483730,0.8692,4371.0,4370.9,0.2144]
[1757527483933,0.8692,4371.0,4370.9,0.7223]
[1757527484134,0.745,4371.0,4370.9,0.7223]
[1757527486738,0.8692,4371.0,4370.9,0.7223]
[1757527487741,0.745,4370.3,4370.2,3.4222]
[1757527487943,0.745,4370.3,4370.2,3.7257]
[1757527488127,0.745,4370.3,4370.2,3.9301]
[1757527488333,0.2155,4370.3,4370.2,3.9301]
[1757527488541,0.1242,4371.0,4370.2,4.0384]
[1757527488837,0.745,4370.9,4370.8,0.7223]
[1757527492243,0.745,4370.9,4370.8,1.13405]
[1757527492641,0.745,4370.9,4370.8,0.7223]
[1757527492840,0.4214,4370.9,4370.8,0.2144]
[1757527493047,0.4214,4370.9,4370.8,0.5179]
[1757527493549,0.745,4370.9,4370.8,0.92965]
[1757527493947,0.745,4370.9,4370.8,0.2144]
[1757527494137,0.4214,4370.6,4370.5,0.5179]
[1757527494340,0.1242,4370.5,4370.4,0.62619]
[1757527494644,0.5456,4370.5,4370.4,0.2144]
[1757527494945,0.8692,4370.5,4370.4,0.92969]
[1757527495143,0.745,4370.5,4370.4,1.13409]
[1757527497045,0.2155,4370.5,4370.4,1.13409]
[1757527497253,0.3105,4370.9,4370.8,0.4035]
[1757527497547,0.5213,4370.9,4370.8,0.6986]
[1757527498044,0.2108,4370.9,4370.8,0.6986]
[1757527498451,0.5213,4370.9,4370.8,0.6986]
[1757527500547,0.737,4370.9,4370.8,0.6986]
[1757527500947,0.737,4370.9,4370.8,1.11035]
[1757527501550,0.737,4370.9,4370.8,0.6986]
[1757527501944,0.737,4370.9,4370.3,0.2951]
[1757527502145,0.4265,4370.3,4370.2,3.4059]
[1757527502450,0.737,4370.3,4370.2,3.701]
[1757527502652,0.737,4370.3,4370.2,3.9064]
[1757527502852,0.737,4370.3,4370.2,4.31821]
[1757527503640,0.737,4370.3,4370.2,3.9064]
[1757527504350,0.737,4370.9,4370.8,0.4932]
[1757527504747,0.1211,4370.5,4370.2,3.5029]
[1757527504952,0.737,4370.3,4370.2,3.701]
[1757527505153,0.737,4370.3,4370.2,3.9064]
[1757527505648,0.4265,4369.9,4369.8,0.4932]
[1757527505854,0.737,4369.9,4369.8,0.4932]
[1757527506152,0.737,4369.9,4369.8,0.6986]
[1757527507442,0.4265,4369.9,4369.5,3.3263]
[1757527507649,0.737,4369.6,4369.5,3.701]
[1757527507954,0.737,4369.6,4369.5,3.9064]
[1757527510556,0.3105,4370.1,4369.5,4.0317]
[1757527510855,0.2108,4370.3,4370.0,3.3331]
[1757527511151,0.737,4370.3,4370.2,0.4035]
[1757527511550,0.4265,4370.3,4369.6,0.2951]
[1757527511754,0.5213,4369.7,4369.6,1.11046]
[1757527511954,0.5213,4369.7,4369.6,0.6986]
[1757527512357,0.737,4369.7,4369.6,0.6986]
[1757527512759,0.972,4370.2,4370.1,0.4035]
[1757527512955,0.972,4370.2,4370.1,0.6986]
[1757527513152,0.4458,4370.2,4370.1,0.6986]
[1757527513352,0.7563,4370.2,4370.1,0.6986]
[1757527514653,0.7563,4370.2,4369.5,3.3331]
[1757527514654,0.972,4370.2,4369.6,0.2951]
[1757527517765,0.3105,4369.9,4369.6,0.6986]
[1757527517965,0.972,4370.2,4370.1,0.6986]
[1757527519664,0.4458,4370.2,4370.1,0.6986]
[1757527519866,0.7563,4370.2,4370.1,0.6986]
[1757527520164,0.972,4370.2,4370.1,0.1981]
[1757527520362,0.972,4370.2,4369.8,0.2951]
[1757527521459,0.4265,4369.2,4369.1,0.6986]
[1757527521661,0.737,4369.2,4369.1,0.6986]
[1757527521963,0.737,4369.2,4369.1,0.1981]
[1757527523361,0.8581,4369.0,4368.9,3.6113]
[1757527523562,0.234,4369.2,4369.1,0.6986]
[1757527523767,0.4448,4369.2,4369.1,0.6986]
[1757527524069,0.3105,4369.7,4369.1,0.4035]
[1757527524270,0.971,4369.7,4369.6,0.6986]
[1757527524767,0.971,4369.7,4369.0,0.53722]
[1757527524967,0.2108,4369.2,4369.1,0.4035]
[1757527525170,0.2108,4369.2,4369.1,0.6986]
[1757527525672,3.2078,4369.9,4369.7,0.2951]
[1757527525966,3.4418,4369.9,4369.8,0.6986]
[1757527526265,3.4418,4369.9,4369.8,0.2951]
[1757527526472,4.1788,4369.9,4369.8,0.6986]
[1757527526672,0.971,4369.9,4369.8,0.6986]
[1757527526969,0.4448,4369.9,4369.8,0.6986]
[1757527527763,0.234,4369.9,4369.8,0.6986]
[1757527529074,0.433,4369.9,4369.8,0.6986]
[1757527530869,0.234,4369.9,4369.8,0.6986]
[1757527531070,0.433,4369.9,4369.8,0.6986]
[1757527531368,0.433,4369.9,4369.8,1.11044]
[1757527531570,0.234,4369.9,4369.8,1.11044]
[1757527531969,0.5144,4370.6,4370.5,0.1277]
[1757527532171,0.199,4370.6,4370.5,0.8202]
[1757527533072,0.234,4370.7,4370.5,1.23198]
[1757527533277,0.234,4370.7,4370.6,1.10427]
[1757527534878,3.2078,4371.1,4371.0,0.8202]
[1757527535273,3.4068,4371.1,4371.0,0.8202]
[1757527535672,0.199,4371.1,4371.0,0.8202]
[1757527536977,0.5144,4371.1,4371.0,0.8202]
[1757527537182,0.234,4371.2,4371.1,0.80472]
[1757527537476,0.234,4371.2,4371.1,1.10422]
[1757527537869,0.433,4371.2,4371.1,0.6925]
[1757527539071,0.3154,4371.6,4371.0,0.1277]
[1757527539272,3.4418,4371.8,4371.6,0.4967]
[1757527539483,3.4418,4371.8,4371.7,0.6925]
[1757527539782,3.6408,4371.8,4371.7,0.6925]
[1757527540085,3.6408,4371.8,4371.7,1.10417]
[1757527540278,3.2078,4372.4,4371.9,0.41164]
[1757527540480,0.433,4372.3,4372.2,0.6925]
[1757527540677,0.9563,4372.3,4372.2,0.6925]
[1757527544779,0.9563,4372.3,4371.8,0.2995]
[1757527545080,0.199,4371.9,4371.8,0.60745]
[1757527545285,0.199,4371.9,4371.8,0.80465]
[1757527545477,0.199,4371.9,4371.8,0.393]
[1757527545684,33.8084,4372.5,4372.4,0.1958]
[1757527545882,34.0424,4372.5,4372.4,0.1958]
[1757527546185,34.0424,4372.5,4372.2,0.2995]
[1757527546788,0.3154,4372.4,4371.7,0.2995]
[1757527546989,0.7223,4371.8,4371.7,0.6925]
[1757527547384,0.7223,4371.8,4371.7,0.1958]
[1757527548288,0.7223,4371.8,4371.7,0.4953]
[1757527548788,0.7223,4371.8,4371.7,0.6925]
[1757527551888,0.533,4371.0,4370.9,3.2078]
[1757527552190,0.8484,4371.0,4370.9,0.4953]
[1757527552585,0.4069,4370.7,4370.6,0.4953]
[1757527552887,0.7223,4370.7,4370.6,0.4953]
[1757527553380,0.533,4370.5,4370.4,3.2078]
[1757527553590,0.8484,4370.5,4370.4,3.2078]
[1757527553889,0.8484,4370.0,4369.9,3.2078]
[1757527554090,0.7223,4370.0,4369.9,3.9003]
[1757527555686,0.4069,4370.0,4369.9,0.1958]
[1757527555990,0.4069,4370.0,4369.7,0.2995]
[1757527555991,0.533,4370.0,4369.7,0.2995]
[1757527556390,0.7223,4369.8,4369.7,0.1958]
[1757527556591,0.9443,4369.8,4369.7,0.6925]
[1757527558594,0.3179,4370.4,4369.8,0.2989]
[1757527558892,0.7454,4370.4,4370.3,0.2016]
[1757527559187,0.7454,4370.4,4370.0,0.2989]
[1757527559392,0.7454,4370.4,4369.5,0.54007]
[1757527559593,0.2141,4369.7,4369.6,0.5005]
[1757527559798,0.7454,4369.7,4369.6,0.6963]
[1757527560295,0.7454,4370.5,4370.4,0.3974]
[1757527560499,0.9794,4370.5,4370.4,0.6963]
[1757527561194,0.2141,4370.5,4370.4,0.6963]
[1757527561395,0.4481,4370.5,4370.4,0.6963]
[1757527562688,3.5257,4370.8,4370.4,0.3974]
[1757527562894,3.9738,4370.8,4370.7,0.6963]
[1757527563197,4.1872,4370.8,4370.7,0.6963]
[1757527564102,3.2078,4370.8,4370.7,0.6963]
[1757527564291,3.9532,4370.8,4370.7,0.5005]
[1757527564598,0.7454,4370.7,4370.6,0.2016]
[1757527565094,0.7454,4370.7,4370.2,0.2989]
[1757527565095,0.3179,4370.6,4370.2,0.2989]
[1757527565298,0.7454,4370.3,4370.2,0.6963]
[1757527566091,0.7454,4370.3,4369.9,3.2078]
[1757527566092,0.3179,4370.2,4369.9,3.5067]
[1757527566291,0.7454,4370.0,4369.9,3.9041]
[1757527567389,0.7454,4370.0,4369.9,4.31594]
[1757527567789,0.7454,4370.0,4369.9,3.9041]
[1757527568101,0.8654,4370.0,4369.9,3.7083]
[1757527568301,0.8654,4370.0,4369.9,3.4094]
[1757527569602,0.8654,4370.0,4369.9,3.7083]
[1757527570698,0.8654,4370.0,4369.9,3.2078]
[1757527571099,0.8654,4370.0,4369.9,3.4094]
[1757527571300,0.8654,4370.0,4369.9,3.7083]
[1757527575100,0.8654,4370.0,4369.9,3.9041]
[1757527575597,4.8654,4370.0,4369.2,3.2078]
[1757527575806,0.532,4369.4,4369.3,0.6963]
[1757527576104,0.7454,4369.4,4369.3,0.6963]
[1757527577800,0.5313,4369.4,4369.3,0.6963]
[1757527578005,0.2134,4369.5,4369.4,0.6963]
[1757527578206,0.7454,4369.5,4369.4,0.6963]
[1757527578704,0.8654,4369.5,4369.4,0.6963]
[1757527579007,0.8654,4369.5,4369.4,0.2016]
[1757527579203,0.4275,4369.1,4369.0,0.5005]
[1757527579397,0.7454,4369.1,4369.0,0.5005]
[1757527579604,0.7454,4369.1,4369.0,0.2016]
[1757527579900,0.7454,4368.8,4368.7,3.4094]
[1757527580300,0.7454,4368.8,4368.7,3.7083]
[1757527580507,0.7454,4368.8,4368.7,3.9041]
[1757527581302,0.7454,4368.8,4368.3,0.2989]
[1757527581507,0.3179,4368.7,4368.2,0.2989]
[1757527581808,0.7454,4368.3,4368.2,0.6963]
[1757527582198,0.234,4368.5,4368.2,0.6963]
[1757527582402,0.234,4368.5,4368.4,0.3974]
[1757527582607,0.234,4368.5,4368.4,0.6963]
[1757527582802,0.3179,4368.7,4368.4,0.6963]
[1757527583004,0.2141,4369.0,4368.9,0.6963]
[1757527583201,3.2078,4369.1,4369.0,0.8245]
[1757527583507,0.234,4369.3,4369.2,0.3974]
[1757527583705,0.234,4369.3,4369.2,0.6963]
[1757527583910,32.96,4369.7,4369.6,0.6963]
[1757527584308,0.234,4369.8,4369.6,0.3974]
[1757527584508,0.234,4369.8,4369.7,0.6963]
[1757527584713,0.4481,4369.8,4369.7,0.6963]
[1757527586102,0.9794,4369.8,4369.7,0.6963]
[1757527586406,0.6615,4369.8,4369.7,0.6963]
[1757527586801,0.234,4369.8,4369.7,0.6963]
[1757527588708,0.9582,4369.8,4369.7,0.6963]
[1757527590108,0.6563,4369.8,4369.7,0.6963]
[1757527591306,0.234,4369.8,4369.7,0.6963]
[1757527592307,0.9582,4369.8,4369.7,0.6963]
[1757527592507,0.4223,4369.1,4369.0,0.417]
[1757527592811,0.7242,4369.1,4369.0,0.417]
[1757527593204,0.7242,4369.1,4369.0,0.7396]
[1757527594106,0.1195,4369.0,4368.7,3.2078]
[1757527594314,0.1195,4369.0,4368.7,0.5356]
[1757527594315,0.7242,4368.8,4368.7,0.5356]
[1757527594504,0.3019,4368.7,4368.2,0.3226]
[1757527594700,0.7242,4368.3,4368.2,0.7396]
[1757527598003,0.7242,4368.3,4367.8,0.3226]
[1757527598204,0.7242,4368.3,4367.7,0.3226]
[1757527598612,0.3019,4368.2,4367.5,3.3329]
[1757527598812,0.7242,4367.6,4367.5,3.7499]
[1757527599013,0.7242,4367.6,4367.5,4.0725]
[1757527599220,0.2143,4367.6,4367.5,4.0725]
[1757527599915,0.2143,4367.6,4367.5,0.8647]
[1757527600118,0.5162,4367.6,4367.5,0.8647]
[1757527600318,0.2143,4367.6,4367.5,0.8647]
[1757527601115,0.7242,4367.6,4367.5,0.7396]
[1757527602322,3.2078,4367.3,4366.0,0.1251]
[1757527602520,3.2078,4366.3,4366.1,0.213]
[1757527602712,0.234,4366.2,4366.1,0.213]
[1757527603013,0.234,4366.2,4366.1,0.417]
[1757527603521,0.234,4366.2,4366.1,0.7396]
[1757527607321,3.2078,4366.3,4366.2,0.7396]
[1757527610427,3.4418,4366.3,4366.2,0.7396]
[1757527611521,7.4418,4366.3,4365.8,0.3226]
[1757527611715,3.4418,4366.3,4365.5,0.6607]
[1757527611919,3.2078,4365.6,4365.5,0.8647]
[1757527612116,3.4418,4365.6,4365.5,0.8647]
[1757527613227,3.4418,4365.6,4365.5,0.6607]
[1757527614123,3.4418,4365.6,4365.5,0.8647]
[1757527614524,3.2078,4365.6,4365.5,0.8647]
[1757527614725,3.4418,4365.6,4365.5,0.8647]
[1757527616028,3.2078,4365.6,4365.5,0.8647]
[1757527616233,3.4418,4365.6,4365.5,0.8647]
[1757527617533,0.234,4365.6,4365.5,0.8647]
[1757527618928,0.234,4365.6,4365.5,1.27695]
[1757527619928,3.2078,4366.3,4366.2,0.7118]
[1757527620129,3.4418,4366.3,4366.2,0.7118]
[1757527620435,3.2078,4366.3,4366.2,1.12398]
[1757527620637,3.4418,4366.3,4366.2,1.12398]
[1757527621734,3.2078,4366.3,4366.2,1.12398]
[1757527622645,0.234,4366.5,4366.4,0.41216]
[1757527622838,0.234,4366.5,4366.4,1.12396]
[1757527624630,3.4418,4367.0,4366.9,1.12392]
[1757527626040,3.2078,4367.0,4366.9,1.12392]
[1757527626832,3.4364,4367.0,4366.9,1.12392]
[1757527627237,0.2286,4367.0,4366.9,1.12392]
[1757527633544,0.2286,4367.0,4366.9,0.7118]
[1757527633934,0.2286,4367.0,4366.5,0.1228]
[1757527633935,7.6704,4367.0,4366.6,0.2956]
[1757527634141,0.234,4366.9,4366.6,0.2118]
[1757527634438,0.234,4366.9,4366.5,0.4184]
[1757527634844,0.234,4366.9,4366.5,0.1228]
[1757527635051,0.234,4366.9,4366.6,0.2956]
[1757527635643,4.0,4366.8,4366.1,0.2956]
[1757527635946,3.2078,4366.4,4366.0,0.4184]
[1757527636140,0.234,4366.3,4366.0,0.4184]
[1757527636538,0.234,4366.3,4366.1,0.2956]
[1757527637648,0.234,4366.3,4365.3,0.2956]
[1757527637841,3.2078,4365.7,4365.1,0.2956]
[1757527638144,0.234,4365.6,4365.0,0.3369]
[1757527638347,0.234,4365.6,4365.2,0.2956]
[1757527638550,0.234,4365.6,4365.1,0.2956]
[1757527639345,0.234,4365.6,4365.0,0.4207]
[1757527639546,3.2078,4365.2,4365.0,0.1228]
[1757527639842,3.2078,4365.2,4365.1,0.2956]
[1757527640052,3.4418,4365.2,4365.1,0.2956]
[1757527640344,3.4418,4365.2,4365.0,0.1228]
[1757527640549,3.4418,4365.2,4365.0,0.4184]
[1757527640748,3.4418,4365.2,4365.1,0.5074]
[1757527640948,3.4418,4365.2,4365.1,0.7118]
[1757527641850,3.6705,4365.2,4365.1,0.5074]
[1757527642349,3.6705,4365.2,4364.8,0.2956]
[1757527642648,3.6705,4365.2,4364.6,0.2956]
[1757527642848,3.6705,4365.2,4364.7,0.2956]
[1757527643043,3.6705,4365.2,4365.1,0.2956]
[1757527644056,3.6705,4365.2,4365.1,0.5074]
[1757527644350,3.6705,4365.2,4365.1,0.7118]
[1757527644945,3.6705,4365.2,4365.1,0.2956]
[1757527645954,3.6705,4365.2,4365.0,0.1228]
[1757527646856,4.0,4365.1,4364.5,0.1228]
[1757527647055,3.2078,4364.6,4364.5,0.1241]
[1757527647253,3.4418,4364.6,4364.5,0.4364]
[1757527647652,3.4418,4364.6,4364.5,0.6399]
[1757527650055,3.4418,4364.6,4364.5,0.4364]
[1757527650349,3.4418,4364.6,4364.5,0.6399]
[1757527651655,3.2078,4364.6,4364.5,0.8557]
[1757527651855,3.4418,4364.6,4364.5,0.8557]
[1757527652554,3.4418,4364.6,4364.5,0.6399]
[1757527652756,3.4418,4364.6,4364.5,0.4364]
[1757527653558,3.4418,4364.6,4364.5,0.6399]
[1757527655563,3.4418,4364.6,4364.5,0.8557]
[1757527656462,3.2078,4364.6,4364.5,0.8557]
[1757527656663,3.4418,4364.6,4364.5,0.8557]
[1757527657054,3.4418,4364.6,4364.5,0.4364]
[1757527657254,3.4418,4364.6,4364.2,0.3123]
[1757527657463,3.4418,4364.6,4364.1,0.2035]
[1757527657662,3.4418,4364.6,4364.5,0.1241]
[1757527658062,3.4418,4364.6,4364.5,0.4364]
[1757527658264,3.4418,4364.6,4364.5,0.6399]
[1757527658864,3.4418,4364.6,4364.5,0.8557]
[1757527659259,3.6706,4364.6,4364.5,0.8557]
[1757527659859,3.6706,4364.6,4364.5,0.6399]
[1757527663772,3.6706,4364.6,4364.5,0.4364]
[1757527663970,3.6706,4364.6,4364.5,0.6399]
[1757527665065,3.6706,4364.6,4364.5,0.8557]
[1757527666476,3.4366,4364.6,4364.5,0.8557]